[Event "Late-Titled-Tuesday-Blitz-August-29-2023"]
[Site "Chess.com"]
[Date "2023.08.29"]
[Round "3"]
[White "Defenstrator"]
[Black "WindWhistler11"]
[Result "0-1"]
[WhiteElo "2304"]
[BlackElo "2475"]
[TimeControl "180+1"]
[EndTime "14:28:15 PDT"]
[Termination "WindWhistler11 won on time"]

1. e4 {[%clk 0:02:43.1]} 1... e6 {[%clk 0:02:59.9]} 2. b4 {[%clk 0:02:37.9]}
2... Bxb4 {[%clk 0:02:57.1]} 3. Bb2 {[%clk 0:02:38.8]} 3... Bf8 {[%clk
0:02:56.9]} 4. Qg4 {[%clk 0:02:23.6]} 4... Nf6 {[%clk 0:02:55.3]} 5. Qh4 {[%clk
0:02:16.8]} 5... Be7 {[%clk 0:02:50.9]} 6. e5 {[%clk 0:01:58]} 6... Nd5 {[%clk
0:02:48.2]} 7. Qg3 {[%clk 0:01:49.6]} 7... g6 {[%clk 0:02:37.4]} 8. Nc3 {[%clk
0:01:40.7]} 8... Nb4 {[%clk 0:02:23.8]} 9. O-O-O {[%clk 0:01:38.2]} 9... N8c6
{[%clk 0:02:22.4]} 10. a3 {[%clk 0:01:09.5]} 10... Na6 {[%clk 0:02:21.3]} 11.
Ne4 {[%clk 0:01:06.3]} 11... Rb8 {[%clk 0:02:12.4]} 12. h4 {[%clk 0:00:53.2]}
12... Rg8 {[%clk 0:01:56.5]} 13. h5 {[%clk 0:00:46.6]} 13... g5 {[%clk
0:01:53.5]} 14. h6 {[%clk 0:00:36.8]} 14... b5 {[%clk 0:01:51.7]} 15. Bd3 {[%clk
0:00:36.2]} 15... b4 {[%clk 0:01:51.9]} 16. a4 {[%clk 0:00:31.1]} 16... b3
{[%clk 0:01:42.8]} 17. Nf6+ {[%clk 0:00:15.7]} 17... Bxf6 {[%clk 0:01:40]} 18.
exf6 {[%clk 0:00:16.6]} 18... bxc2 {[%clk 0:01:32.7]} 19. Bxc2 {[%clk
0:00:15.5]} 19... Rxb2 {[%clk 0:01:28.2]} 20. Kxb2 {[%clk 0:00:14.3]} 20...
Qxf6+ {[%clk 0:01:28.9]} 21. Qc3 {[%clk 0:00:11.6]} 21... Qxc3+ {[%clk
0:01:24.1]} 22. dxc3 {[%clk 0:00:09.9]} 22... Rh8 {[%clk 0:01:24.8]} 23. Nf3
{[%clk 0:00:06.3]} 23... f6 {[%clk 0:01:25.4]} 24. Nd4 {[%clk 0:00:05.3]} 24...
Ne5 {[%clk 0:01:25.5]} 25. f3 {[%clk 0:00:03.6]} 25... Nc4+ {[%clk 0:01:24.3]}
26. Kc1 {[%clk 0:00:03.3]} 26... Ne3 {[%clk 0:01:24.7]} 27. Rd2 {[%clk
0:00:03.9]} 27... Nc4 {[%clk 0:01:23.5]} 28. Re2 {[%clk 0:00:04.5]} 28... Nc5
{[%clk 0:01:23.6]} 29. Nf5 {[%clk 0:00:05.3]} 29... Kf7 {[%clk 0:01:22.6]} 30.
Ng3 {[%clk 0:00:05.3]} 30... Ba6 {[%clk 0:01:20.2]} 31. Rf2 {[%clk 0:00:04.7]}
31... Ne5 {[%clk 0:01:20.4]} 32. Ne4 {[%clk 0:00:05.4]} 32... Ncd3+ {[%clk
0:01:20.8]} 33. Bxd3 {[%clk 0:00:05.7]} 33... Nxd3+ {[%clk 0:01:21.7]} 34. Kd2
{[%clk 0:00:06.6]} 34... Nxf2 {[%clk 0:01:22.4]} 35. Nxf2 {[%clk 0:00:07.5]}
35... Rb8 {[%clk 0:01:21.8]} 36. Ke3 {[%clk 0:00:06.7]} 36... Rb2 {[%clk
0:01:22]} 37. Ne4 {[%clk 0:00:06.8]} 37... d6 {[%clk 0:01:20]} 38. g4 {[%clk
0:00:06.2]} 38... Re2+ {[%clk 0:01:16.3]} 39. Kd4 {[%clk 0:00:06]} 39... c5+
{[%clk 0:01:12.8]} 40. Nxc5 {[%clk 0:00:05.3]} 40... dxc5+ {[%clk 0:01:13.7]}
41. Kxc5 {[%clk 0:00:06.2]} 41... Re3 {[%clk 0:01:14.2]} 42. Rd1 {[%clk
0:00:05.8]} 42... Rxc3+ {[%clk 0:01:13.8]} 43. Kb4 {[%clk 0:00:05.4]} 43... Rxf3
{[%clk 0:01:14.1]} 44. Ka5 {[%clk 0:00:05]} 44... Be2 {[%clk 0:01:13.2]} 45.
Rd7+ {[%clk 0:00:05]} 45... Kg6 {[%clk 0:01:13.4]} 46. Rxa7 {[%clk 0:00:05.1]}
46... Rf4 {[%clk 0:01:12]} 47. Kb6 {[%clk 0:00:04.5]} 47... Rxg4 {[%clk
0:01:10.6]} 48. a5 {[%clk 0:00:05.4]} 48... Ra4 {[%clk 0:01:11]} 49. Re7 {[%clk
0:00:03.9]} 49... e5 {[%clk 0:01:10.5]} 50. Rd7 {[%clk 0:00:02.8]} 50... Kxh6
{[%clk 0:01:10.2]} 51. Rd6 {[%clk 0:00:03.1]} 51... Kg6 {[%clk 0:01:10.2]} 52.
Rd2 {[%clk 0:00:04]} 52... Bc4 {[%clk 0:01:08.2]} 53. Rc2 {[%clk 0:00:04.2]}
53... g4 {[%clk 0:01:06.8]} 54. Kc5 {[%clk 0:00:02]} 54... Bd3 {[%clk
0:01:06.6]} 55. Rd2 {[%clk 0:00:02.5]} 55... e4 {[%clk 0:01:06.8]} 56. Kd6
{[%clk 0:00:01.8]} 56... Kg5 {[%clk 0:01:05.2]} 57. Ke6 {[%clk 0:00:02.2]} 57...
g3 {[%clk 0:01:04.1]} 0-1

[Event "Late-Titled-Tuesday-Blitz-August-29-2023"]
[Site "Chess.com"]
[Date "2023.08.29"]
[Round "3"]
[White "KejJaj"]
[Black "arenal72"]
[Result "0-1"]
[WhiteElo "2216"]
[BlackElo "2530"]
[TimeControl "180+1"]
[EndTime "14:28:16 PDT"]
[Termination "arenal72 won on time"]

1. d4 {[%clk 0:03:00.9]} 1... d6 {[%clk 0:02:58.3]} 2. Bf4 {[%clk 0:03:01.5]}
2... Nf6 {[%clk 0:02:54.6]} 3. Nf3 {[%clk 0:03:01.4]} 3... g6 {[%clk 0:02:55.2]}
4. Nc3 {[%clk 0:03:00.2]} 4... Bg7 {[%clk 0:02:53.7]} 5. e4 {[%clk 0:03:00.8]}
5... O-O {[%clk 0:02:50.9]} 6. Qd2 {[%clk 0:03:01.3]} 6... a6 {[%clk 0:02:50.9]}
7. O-O-O {[%clk 0:02:56.9]} 7... b5 {[%clk 0:02:50.4]} 8. Bd3 {[%clk 0:02:45.4]}
8... Bb7 {[%clk 0:02:42.9]} 9. d5 {[%clk 0:02:25.3]} 9... c6 {[%clk 0:02:31.1]}
10. dxc6 {[%clk 0:02:07]} 10... Nxc6 {[%clk 0:02:25.5]} 11. Bh6 {[%clk
0:02:03.9]} 11... b4 {[%clk 0:02:10.4]} 12. Ne2 {[%clk 0:01:51.4]} 12... Qa5
{[%clk 0:02:01.1]} 13. Kb1 {[%clk 0:01:49.2]} 13... Rfc8 {[%clk 0:01:52.4]} 14.
Bxg7 {[%clk 0:01:38.4]} 14... Kxg7 {[%clk 0:01:50.6]} 15. h4 {[%clk 0:01:39]}
15... h5 {[%clk 0:01:42.8]} 16. Qe3 {[%clk 0:01:15.9]} 16... Ng4 {[%clk
0:01:38.5]} 17. Qf4 {[%clk 0:01:11]} 17... e5 {[%clk 0:01:33.7]} 18. Qg3 {[%clk
0:01:09.7]} 18... b3 {[%clk 0:01:23.4]} 19. cxb3 {[%clk 0:01:03.7]} 19... Nb4
{[%clk 0:01:22.9]} 20. a3 {[%clk 0:01:02.1]} 20... Nxd3 {[%clk 0:01:22.6]} 21.
Rxd3 {[%clk 0:00:57.4]} 21... Bxe4 {[%clk 0:01:23.1]} 22. Rd1 {[%clk 0:00:57.8]}
22... Qb5 {[%clk 0:01:22.8]} 23. Ng5 {[%clk 0:00:43.1]} 23... Bxd3+ {[%clk
0:01:21.6]} 24. Rxd3 {[%clk 0:00:42.7]} 24... Rc7 {[%clk 0:01:10.8]} 25. f3
{[%clk 0:00:40.1]} 25... Nf6 {[%clk 0:01:07.8]} 26. f4 {[%clk 0:00:27.9]} 26...
e4 {[%clk 0:00:57.2]} 27. Rd2 {[%clk 0:00:26.7]} 27... Rac8 {[%clk 0:00:51.4]}
28. Nd4 {[%clk 0:00:22.5]} 28... Qd7 {[%clk 0:00:46.1]} 29. f5 {[%clk 0:00:20]}
29... Rc1+ {[%clk 0:00:36.5]} 30. Ka2 {[%clk 0:00:19.8]} 30... Rf1 {[%clk
0:00:31.6]} 31. fxg6 {[%clk 0:00:18.7]} 31... Rcc1 {[%clk 0:00:29.6]} 32. Nc2
{[%clk 0:00:15.1]} 32... fxg6 {[%clk 0:00:22.4]} 33. Qc3 {[%clk 0:00:10.3]}
33... Qe7 {[%clk 0:00:16.3]} 34. b4 {[%clk 0:00:09.6]} 34... Qe8 {[%clk
0:00:07]} 35. Re2 {[%clk 0:00:08.5]} 35... Qg8+ {[%clk 0:00:06.4]} 36. b3 {[%clk
0:00:07.1]} 36... d5 {[%clk 0:00:06.4]} 37. Qc7+ {[%clk 0:00:05.1]} 37... Kh6
{[%clk 0:00:03.7]} 38. Qe5 {[%clk 0:00:03.6]} 38... Qg7 {[%clk 0:00:02.2]} 39.
Ne6 {[%clk 0:00:03.1]} 39... Qf7 {[%clk 0:00:01.6]} 40. Qg5+ {[%clk 0:00:03]}
40... Kh7 {[%clk 0:00:02.1]} 41. Ned4 {[%clk 0:00:02.6]} 41... Ng4 {[%clk
0:00:02.1]} 0-1

[Event "Late-Titled-Tuesday-Blitz-August-29-2023"]
[Site "Chess.com"]
[Date "2023.08.29"]
[Round "3"]
[White "eldur16"]
[Black "colegiodemadrid"]
[Result "1-0"]
[WhiteElo "2630"]
[BlackElo "2439"]
[TimeControl "180+1"]
[EndTime "14:28:17 PDT"]
[Termination "eldur16 won on time"]

1. e4 {[%clk 0:03:00.9]} 1... e5 {[%clk 0:02:58.1]} 2. Nf3 {[%clk 0:03:00.3]}
2... Nc6 {[%clk 0:02:58.4]} 3. Bb5 {[%clk 0:03:00.1]} 3... g6 {[%clk 0:02:53.3]}
4. c3 {[%clk 0:02:57.4]} 4... d6 {[%clk 0:02:52.9]} 5. d4 {[%clk 0:02:54.3]}
5... Bd7 {[%clk 0:02:52.5]} 6. O-O {[%clk 0:02:53.1]} 6... a6 {[%clk 0:02:51.1]}
7. Ba4 {[%clk 0:02:50.7]} 7... Bg7 {[%clk 0:02:50.5]} 8. Be3 {[%clk 0:02:49.7]}
8... Nf6 {[%clk 0:02:44.9]} 9. Nbd2 {[%clk 0:02:49.3]} 9... O-O {[%clk 0:02:45]}
10. h3 {[%clk 0:02:47.1]} 10... Re8 {[%clk 0:02:41.5]} 11. Bc2 {[%clk
0:02:44.6]} 11... exd4 {[%clk 0:02:38.4]} 12. cxd4 {[%clk 0:02:43.4]} 12... Nb4
{[%clk 0:02:38.9]} 13. Bb1 {[%clk 0:02:36.3]} 13... Bb5 {[%clk 0:02:38.6]} 14.
Re1 {[%clk 0:02:31.5]} 14... Nd3 {[%clk 0:02:39.1]} 15. Bxd3 {[%clk 0:02:30.4]}
15... Bxd3 {[%clk 0:02:40]} 16. Bg5 {[%clk 0:02:25.4]} 16... h6 {[%clk
0:02:28.2]} 17. Qb3 {[%clk 0:02:21.5]} 17... Bb5 {[%clk 0:02:18.5]} 18. Bh4
{[%clk 0:02:10.1]} 18... Qc8 {[%clk 0:01:57.6]} 19. Rac1 {[%clk 0:02:04.2]}
19... Nh5 {[%clk 0:01:46.7]} 20. Nc4 {[%clk 0:01:34.3]} 20... Qd7 {[%clk
0:01:21.2]} 21. Qc2 {[%clk 0:01:21.7]} 21... g5 {[%clk 0:00:47.7]} 22. Bg3
{[%clk 0:01:21]} 22... Nxg3 {[%clk 0:00:46.3]} 23. fxg3 {[%clk 0:01:20.3]} 23...
Bxc4 {[%clk 0:00:32.4]} 24. Qxc4 {[%clk 0:01:19.3]} 24... c6 {[%clk 0:00:33.2]}
25. Qd3 {[%clk 0:01:07.1]} 25... Re7 {[%clk 0:00:30.7]} 26. g4 {[%clk
0:01:04.8]} 26... Rae8 {[%clk 0:00:30.4]} 27. Re2 {[%clk 0:01:01.7]} 27... Qe6
{[%clk 0:00:21.2]} 28. b3 {[%clk 0:01:00.8]} 28... Qd7 {[%clk 0:00:20.4]} 29.
Rce1 {[%clk 0:00:56.1]} 29... Qd8 {[%clk 0:00:20.2]} 30. h4 {[%clk 0:00:53.7]}
30... Qd7 {[%clk 0:00:12.4]} 31. hxg5 {[%clk 0:00:52.4]} 31... hxg5 {[%clk
0:00:13.3]} 32. Nxg5 {[%clk 0:00:46.7]} 32... Qxg4 {[%clk 0:00:12.9]} 33. Nf3
{[%clk 0:00:46.5]} 33... Bh6 {[%clk 0:00:08]} 34. e5 {[%clk 0:00:42.3]} 34... d5
{[%clk 0:00:07.2]} 35. Rf1 {[%clk 0:00:39.4]} 35... Re6 {[%clk 0:00:07.5]} 36.
Nh2 {[%clk 0:00:37.7]} 36... Qg7 {[%clk 0:00:05.3]} 37. Rf5 {[%clk 0:00:33.3]}
37... Rg6 {[%clk 0:00:04.8]} 38. Nf3 {[%clk 0:00:33.1]} 38... Re7 {[%clk
0:00:04.5]} 39. Nh4 {[%clk 0:00:30.8]} 39... Rg4 {[%clk 0:00:04.4]} 40. Rh5
{[%clk 0:00:30.6]} 40... Bg5 {[%clk 0:00:03.7]} 41. Nf5 {[%clk 0:00:29.5]} 41...
Qg6 {[%clk 0:00:04.2]} 42. Nxe7+ {[%clk 0:00:22.1]} 42... Bxe7 {[%clk
0:00:05.1]} 43. Qh3 {[%clk 0:00:20.3]} 43... Kg7 {[%clk 0:00:01.5]} 44. Rf2
{[%clk 0:00:17]} 44... Rg3 {[%clk 0:00:01.5]} 45. Rh7+ {[%clk 0:00:16.2]} 1-0

[Event "Late-Titled-Tuesday-Blitz-August-29-2023"]
[Site "Chess.com"]
[Date "2023.08.29"]
[Round "3"]
[White "nitpicker"]
[Black "komogro"]
[Result "0-1"]
[WhiteElo "2290"]
[BlackElo "2472"]
[TimeControl "180+1"]
[EndTime "14:28:17 PDT"]
[Termination "komogro won by resignation"]

1. d4 {[%clk 0:03:00.9]} 1... Nf6 {[%clk 0:02:59.5]} 2. c4 {[%clk 0:03:01]} 2...
g6 {[%clk 0:02:59.4]} 3. Nc3 {[%clk 0:03:00.2]} 3... Bg7 {[%clk 0:02:59.7]} 4.
e4 {[%clk 0:03:00.2]} 4... d6 {[%clk 0:02:59.5]} 5. Be2 {[%clk 0:03:00.1]} 5...
O-O {[%clk 0:02:58]} 6. Nf3 {[%clk 0:02:57.8]} 6... Na6 {[%clk 0:02:56]} 7. Be3
{[%clk 0:02:53.7]} 7... Ng4 {[%clk 0:02:54.7]} 8. Bg5 {[%clk 0:02:51.6]} 8... f6
{[%clk 0:02:54.7]} 9. Bh4 {[%clk 0:02:51.4]} 9... e5 {[%clk 0:02:54.5]} 10. d5
{[%clk 0:02:42.5]} 10... h5 {[%clk 0:02:47.9]} 11. h3 {[%clk 0:02:37.1]} 11...
Nh6 {[%clk 0:02:45.2]} 12. Nd2 {[%clk 0:02:34.9]} 12... Qe8 {[%clk 0:02:22.7]}
13. a3 {[%clk 0:02:31.8]} 13... f5 {[%clk 0:02:20.7]} 14. b4 {[%clk 0:02:13.2]}
14... fxe4 {[%clk 0:01:59.9]} 15. Ndxe4 {[%clk 0:02:02.8]} 15... Nf5 {[%clk
0:02:00]} 16. Bg5 {[%clk 0:02:02.2]} 16... Nd4 {[%clk 0:01:59.5]} 17. Bd3 {[%clk
0:01:56.4]} 17... Bf5 {[%clk 0:01:55.7]} 18. O-O {[%clk 0:01:52.1]} 18... Qd7
{[%clk 0:01:48.7]} 19. h4 {[%clk 0:01:40.2]} 19... c6 {[%clk 0:01:33.6]} 20.
dxc6 {[%clk 0:01:31.6]} 20... bxc6 {[%clk 0:01:33]} 21. b5 {[%clk 0:01:30.9]}
21... Nc5 {[%clk 0:01:29.6]} 22. Nxc5 {[%clk 0:01:16.2]} 22... dxc5 {[%clk
0:01:28.3]} 23. Be4 {[%clk 0:01:11.2]} 23... Bxe4 {[%clk 0:01:23.2]} 24. Nxe4
{[%clk 0:01:11.1]} 24... cxb5 {[%clk 0:01:21]} 25. cxb5 {[%clk 0:00:59]} 25...
Qxb5 {[%clk 0:01:17.3]} 26. Rc1 {[%clk 0:00:59]} 26... Ne2+ {[%clk 0:01:06.4]}
27. Kh2 {[%clk 0:00:58.8]} 27... Nxc1 {[%clk 0:01:06.9]} 28. Qd5+ {[%clk
0:00:57.7]} 28... Kh7 {[%clk 0:01:03.5]} 29. Rxc1 {[%clk 0:00:57.6]} 29... Rac8
{[%clk 0:00:57.6]} 30. Be3 {[%clk 0:00:56.8]} 30... Qc6 {[%clk 0:00:54.8]} 31.
Ng5+ {[%clk 0:00:55.3]} 31... Kh8 {[%clk 0:00:51.4]} 32. Nf7+ {[%clk 0:00:54.1]}
32... Kg8 {[%clk 0:00:48]} 33. Nh6+ {[%clk 0:00:31]} 33... Kh7 {[%clk
0:00:47.4]} 34. Qd2 {[%clk 0:00:17.2]} 34... c4 {[%clk 0:00:44.9]} 35. g4 {[%clk
0:00:17.2]} 35... c3 {[%clk 0:00:43.5]} 36. Qd3 {[%clk 0:00:15.6]} 36... Bxh6
{[%clk 0:00:37.8]} 37. gxh5 {[%clk 0:00:15.6]} 37... Bxe3 {[%clk 0:00:37.3]} 38.
Qxe3 {[%clk 0:00:15.5]} 38... gxh5 {[%clk 0:00:34.7]} 39. Rg1 {[%clk 0:00:14.4]}
39... Rg8 {[%clk 0:00:30.7]} 40. Rg5 {[%clk 0:00:12.5]} 40... Rxg5 {[%clk
0:00:24.2]} 41. Qxg5 {[%clk 0:00:12.6]} 41... Qg6 {[%clk 0:00:20.1]} 42. Qe7+
{[%clk 0:00:11.6]} 42... Kh6 {[%clk 0:00:19.8]} 43. Qxe5 {[%clk 0:00:10.4]}
43... Re8 {[%clk 0:00:16.1]} 44. Qxc3 {[%clk 0:00:08.7]} 44... Qd6+ {[%clk
0:00:15.6]} 45. Kg2 {[%clk 0:00:07.8]} 45... Rg8+ {[%clk 0:00:15.2]} 46. Kh1
{[%clk 0:00:06]} 46... Qd5+ {[%clk 0:00:15]} 47. f3 {[%clk 0:00:06.2]} 47...
Qd1+ {[%clk 0:00:14.4]} 0-1

[Event "Late-Titled-Tuesday-Blitz-August-29-2023"]
[Site "Chess.com"]
[Date "2023.08.29"]
[Round "3"]
[White "Sajkochess"]
[Black "MYMChessAcademy"]
[Result "1-0"]
[WhiteElo "2419"]
[BlackElo "2221"]
[TimeControl "180+1"]
[EndTime "14:28:18 PDT"]
[Termination "Sajkochess won by checkmate"]

1. e4 {[%clk 0:03:00.9]} 1... c5 {[%clk 0:02:59.6]} 2. Nf3 {[%clk 0:03:00.7]}
2... d6 {[%clk 0:02:59.7]} 3. d4 {[%clk 0:03:01.3]} 3... cxd4 {[%clk 0:03:00.6]}
4. Nxd4 {[%clk 0:03:01.8]} 4... Nf6 {[%clk 0:02:59.9]} 5. Nc3 {[%clk 0:03:02.3]}
5... a6 {[%clk 0:02:59.9]} 6. g3 {[%clk 0:03:02.7]} 6... e5 {[%clk 0:02:57.9]}
7. Nde2 {[%clk 0:03:02.1]} 7... g6 {[%clk 0:02:57.9]} 8. Bg2 {[%clk 0:03:01.7]}
8... Bg7 {[%clk 0:02:58.4]} 9. O-O {[%clk 0:02:58.3]} 9... O-O {[%clk
0:02:58.9]} 10. Bg5 {[%clk 0:02:52.2]} 10... Be6 {[%clk 0:02:57.5]} 11. Bxf6
{[%clk 0:02:48]} 11... Bxf6 {[%clk 0:02:58.4]} 12. Nd5 {[%clk 0:02:48.4]} 12...
Bxd5 {[%clk 0:02:54.2]} 13. Qxd5 {[%clk 0:02:49.3]} 13... Nc6 {[%clk 0:02:52.2]}
14. Rfd1 {[%clk 0:02:41.5]} 14... Be7 {[%clk 0:02:51.5]} 15. h4 {[%clk
0:02:03.8]} 15... Qc7 {[%clk 0:02:43.7]} 16. c3 {[%clk 0:01:52.3]} 16... Rad8
{[%clk 0:02:36.9]} 17. h5 {[%clk 0:01:49.9]} 17... Bf6 {[%clk 0:02:35.1]} 18.
Bh3 {[%clk 0:01:42.9]} 18... Ne7 {[%clk 0:02:32.8]} 19. Qd2 {[%clk 0:01:39.3]}
19... d5 {[%clk 0:02:31.9]} 20. Qe3 {[%clk 0:01:36.2]} 20... Bg7 {[%clk
0:02:08.2]} 21. exd5 {[%clk 0:01:21.5]} 21... Nxd5 {[%clk 0:02:05.3]} 22. Qf3
{[%clk 0:01:20.8]} 22... Nb6 {[%clk 0:01:39.3]} 23. Bg2 {[%clk 0:01:13.5]} 23...
Rxd1+ {[%clk 0:01:22.1]} 24. Rxd1 {[%clk 0:01:14.4]} 24... Rd8 {[%clk
0:01:15.2]} 25. Nc1 {[%clk 0:01:12.5]} 25... Rxd1+ {[%clk 0:01:10.3]} 26. Qxd1
{[%clk 0:01:13.4]} 26... Nc4 {[%clk 0:01:07.9]} 27. Qb3 {[%clk 0:01:06.6]} 27...
b5 {[%clk 0:01:06.3]} 28. Nd3 {[%clk 0:01:02.3]} 28... Qd6 {[%clk 0:01:03]} 29.
Qc2 {[%clk 0:01:02.1]} 29... a5 {[%clk 0:01:00]} 30. b4 {[%clk 0:00:52.3]} 30...
axb4 {[%clk 0:00:56.4]} 31. cxb4 {[%clk 0:00:52.1]} 31... Qd4 {[%clk 0:00:54]}
32. Nc5 {[%clk 0:00:44.8]} 32... f5 {[%clk 0:00:50.6]} 33. a4 {[%clk 0:00:41.3]}
33... f4 {[%clk 0:00:29.4]} 34. gxf4 {[%clk 0:00:34.4]} 34... exf4 {[%clk
0:00:24.1]} 35. axb5 {[%clk 0:00:33.5]} 35... Be5 {[%clk 0:00:18.1]} 36. Nb3
{[%clk 0:00:28.3]} 36... Ne3 {[%clk 0:00:01.9]} 37. Nxd4 {[%clk 0:00:24.3]}
37... Nxc2 {[%clk 0:00:02.8]} 38. Nxc2 {[%clk 0:00:25.1]} 38... Kf7 {[%clk
0:00:03.7]} 39. b6 {[%clk 0:00:23.7]} 39... Bf6 {[%clk 0:00:04.6]} 40. b7 {[%clk
0:00:23.8]} 40... Be5 {[%clk 0:00:05.1]} 41. Nd4 {[%clk 0:00:24.1]} 41... Bb8
{[%clk 0:00:04.6]} 42. Nc6 {[%clk 0:00:25]} 42... Bc7 {[%clk 0:00:04.8]} 43.
b8=Q {[%clk 0:00:25.4]} 43... Bxb8 {[%clk 0:00:05.4]} 44. Nxb8 {[%clk
0:00:26.1]} 44... gxh5 {[%clk 0:00:05.6]} 45. Na6 {[%clk 0:00:25.6]} 45... h6
{[%clk 0:00:06.5]} 46. b5 {[%clk 0:00:26.3]} 46... h4 {[%clk 0:00:07.4]} 47. b6
{[%clk 0:00:26.9]} 47... h5 {[%clk 0:00:08.3]} 48. b7 {[%clk 0:00:27]} 48... h3
{[%clk 0:00:09.2]} 49. Bxh3 {[%clk 0:00:27]} 49... h4 {[%clk 0:00:10.1]} 50.
b8=Q {[%clk 0:00:27.2]} 50... Kg6 {[%clk 0:00:11]} 51. Qe5 {[%clk 0:00:27.2]}
51... f3 {[%clk 0:00:11.9]} 52. Qf5+ {[%clk 0:00:27.3]} 52... Kh6 {[%clk
0:00:12.8]} 53. Bg4 {[%clk 0:00:26.5]} 53... Kg7 {[%clk 0:00:13.7]} 54. Bh5
{[%clk 0:00:26.2]} 54... Kh8 {[%clk 0:00:14.6]} 55. Qf6+ {[%clk 0:00:20.2]}
55... Kh7 {[%clk 0:00:14.5]} 56. Bg6+ {[%clk 0:00:20.6]} 56... Kh6 {[%clk
0:00:12.9]} 57. Bf5+ {[%clk 0:00:20.9]} 57... Kh5 {[%clk 0:00:12.3]} 58. Qg6#
{[%clk 0:00:21.5]} 1-0

[Event "Late-Titled-Tuesday-Blitz-August-29-2023"]
[Site "Chess.com"]
[Date "2023.08.29"]
[Round "3"]
[White "Fore_Man"]
[Black "The_Straightforward_Rook"]
[Result "0-1"]
[WhiteElo "2308"]
[BlackElo "2484"]
[TimeControl "180+1"]
[EndTime "14:28:22 PDT"]
[Termination "The_Straightforward_Rook won by checkmate"]

1. Nf3 {[%clk 0:03:00.9]} 1... Nf6 {[%clk 0:02:58.1]} 2. c4 {[%clk 0:03:01.1]}
2... e6 {[%clk 0:02:57.9]} 3. d4 {[%clk 0:03:01.4]} 3... Bb4+ {[%clk 0:02:53.3]}
4. Bd2 {[%clk 0:03:00.4]} 4... a5 {[%clk 0:02:53]} 5. a3 {[%clk 0:02:59.8]} 5...
Bxd2+ {[%clk 0:02:51.2]} 6. Qxd2 {[%clk 0:02:59.4]} 6... Nc6 {[%clk 0:02:49.1]}
7. Nc3 {[%clk 0:02:59.6]} 7... d6 {[%clk 0:02:49.7]} 8. e4 {[%clk 0:02:59.5]}
8... e5 {[%clk 0:02:49.9]} 9. d5 {[%clk 0:02:59.5]} 9... Nb8 {[%clk 0:02:47.5]}
10. Bd3 {[%clk 0:02:59.4]} 10... Nbd7 {[%clk 0:02:46.1]} 11. O-O {[%clk
0:02:55.7]} 11... Nc5 {[%clk 0:02:46.3]} 12. Bc2 {[%clk 0:02:56.5]} 12... a4
{[%clk 0:02:46]} 13. Rfe1 {[%clk 0:02:53.2]} 13... O-O {[%clk 0:02:45.2]} 14.
Qd1 {[%clk 0:02:53.3]} 14... Bd7 {[%clk 0:02:45.2]} 15. Qe2 {[%clk 0:02:45.9]}
15... h6 {[%clk 0:02:43.2]} 16. Nh4 {[%clk 0:02:32.2]} 16... g6 {[%clk
0:02:41.7]} 17. g3 {[%clk 0:02:30.4]} 17... Kh7 {[%clk 0:02:35.6]} 18. Ng2
{[%clk 0:02:28.3]} 18... Nh5 {[%clk 0:02:25.1]} 19. f4 {[%clk 0:02:21.4]} 19...
exf4 {[%clk 0:02:12.8]} 20. gxf4 {[%clk 0:02:22.3]} 20... Qf6 {[%clk 0:02:01.1]}
21. e5 {[%clk 0:02:21.1]} 21... Qg7 {[%clk 0:01:54.3]} 22. Qxh5 {[%clk
0:02:20.6]} 22... Rae8 {[%clk 0:01:35.1]} 23. Qe2 {[%clk 0:02:08.7]} 23... Kh8
{[%clk 0:01:30.2]} 24. Ne4 {[%clk 0:02:04.4]} 24... Nxe4 {[%clk 0:01:27.1]} 25.
Qxe4 {[%clk 0:02:05.3]} 25... Bf5 {[%clk 0:01:24.4]} 26. Qe2 {[%clk 0:02:05.8]}
26... Bxc2 {[%clk 0:01:24.6]} 27. Qxc2 {[%clk 0:02:06.7]} 27... dxe5 {[%clk
0:01:25.2]} 28. fxe5 {[%clk 0:02:06.7]} 28... Rxe5 {[%clk 0:01:26.1]} 29. Rxe5
{[%clk 0:02:05.6]} 29... Qxe5 {[%clk 0:01:27]} 30. Re1 {[%clk 0:02:05.7]} 30...
Qd6 {[%clk 0:01:23]} 31. Qc3+ {[%clk 0:02:01.2]} 31... Kh7 {[%clk 0:01:22.7]}
32. Qe3 {[%clk 0:01:58]} 32... b5 {[%clk 0:01:17.8]} 33. Qe7 {[%clk 0:01:55.2]}
33... bxc4 {[%clk 0:01:16.5]} 34. Qxd6 {[%clk 0:01:54.3]} 34... cxd6 {[%clk
0:01:17.4]} 35. Re4 {[%clk 0:01:50]} 35... Rc8 {[%clk 0:01:11.9]} 36. Re3 {[%clk
0:01:48.6]} 36... Rb8 {[%clk 0:01:11.4]} 37. Re2 {[%clk 0:01:47.8]} 37... Rb5
{[%clk 0:01:09.8]} 38. Ne3 {[%clk 0:01:47.5]} 38... Kg7 {[%clk 0:01:07.1]} 39.
Nxc4 {[%clk 0:01:39.3]} 39... Rxd5 {[%clk 0:01:07.1]} 40. Re4 {[%clk 0:01:39.4]}
40... Rd1+ {[%clk 0:01:03.5]} 41. Kg2 {[%clk 0:01:39.3]} 41... d5 {[%clk
0:01:04.1]} 42. Rf4 {[%clk 0:01:21.6]} 42... dxc4 {[%clk 0:01:02.5]} 43. Rxc4
{[%clk 0:01:22.5]} 43... Rd2+ {[%clk 0:01:00.8]} 44. Kg3 {[%clk 0:01:23]} 44...
Rxb2 {[%clk 0:01:01.1]} 45. Rxa4 {[%clk 0:01:23.5]} 45... Ra2 {[%clk 0:00:59.2]}
46. Ra6 {[%clk 0:01:23.3]} 46... h5 {[%clk 0:00:54.8]} 47. h4 {[%clk 0:01:23.7]}
47... Ra1 {[%clk 0:00:54.4]} 48. a4 {[%clk 0:01:23.3]} 48... Rg1+ {[%clk
0:00:53.7]} 49. Kh2 {[%clk 0:01:23.4]} 49... Rg4 {[%clk 0:00:52.3]} 50. Kh3
{[%clk 0:01:23.5]} 50... Kh6 {[%clk 0:00:49.4]} 51. a5 {[%clk 0:01:18.2]} 51...
Ra4 {[%clk 0:00:48.8]} 52. Ra8 {[%clk 0:01:16.2]} 52... Kg7 {[%clk 0:00:45.9]}
53. a6 {[%clk 0:01:16.4]} 53... Kf6 {[%clk 0:00:45.1]} 54. a7 {[%clk 0:01:11.2]}
54... Ra3+ {[%clk 0:00:43]} 55. Kg2 {[%clk 0:01:10.1]} 55... Kf5 {[%clk
0:00:43.4]} 56. Kh2 {[%clk 0:00:55]} 56... Kg4 {[%clk 0:00:43]} 57. Rc8 {[%clk
0:00:53.1]} 57... Rxa7 {[%clk 0:00:40.3]} 58. Rc4+ {[%clk 0:00:53.6]} 58... Kf5
{[%clk 0:00:40.4]} 59. Kh3 {[%clk 0:00:54.3]} 59... Ra3+ {[%clk 0:00:39.3]} 60.
Kg2 {[%clk 0:00:55]} 60... Re3 {[%clk 0:00:39.2]} 61. Rc5+ {[%clk 0:00:51.8]}
61... Re5 {[%clk 0:00:39.2]} 62. Rc4 {[%clk 0:00:51.6]} 62... Re4 {[%clk
0:00:39.3]} 63. Rc5+ {[%clk 0:00:51.8]} 63... Kg4 {[%clk 0:00:39.5]} 64. Rc7
{[%clk 0:00:51.9]} 64... Rf4 {[%clk 0:00:39.3]} 65. Rc1 {[%clk 0:00:49.5]} 65...
Kxh4 {[%clk 0:00:39.1]} 66. Rh1+ {[%clk 0:00:50.2]} 66... Kg4 {[%clk 0:00:39.6]}
67. Rd1 {[%clk 0:00:49.8]} 67... Ra4 {[%clk 0:00:39.2]} 68. Rd5 {[%clk
0:00:50.2]} 68... Ra2+ {[%clk 0:00:37.6]} 69. Kg1 {[%clk 0:00:50.3]} 69... f5
{[%clk 0:00:38.1]} 70. Rd6 {[%clk 0:00:50.4]} 70... g5 {[%clk 0:00:38.1]} 71.
Rf6 {[%clk 0:00:50.5]} 71... f4 {[%clk 0:00:38.3]} 72. Rb6 {[%clk 0:00:51]}
72... Kg3 {[%clk 0:00:37.2]} 73. Rb1 {[%clk 0:00:50.7]} 73... f3 {[%clk
0:00:36.8]} 74. Rf1 {[%clk 0:00:51.5]} 74... g4 {[%clk 0:00:35.7]} 75. Kh1
{[%clk 0:00:51.1]} 75... h4 {[%clk 0:00:35.4]} 76. Kg1 {[%clk 0:00:50.8]} 76...
Kh3 {[%clk 0:00:32.7]} 77. Kh1 {[%clk 0:00:51.2]} 77... g3 {[%clk 0:00:31.2]}
78. Rxf3 {[%clk 0:00:51.9]} 78... Ra1+ {[%clk 0:00:30.7]} 79. Rf1 {[%clk
0:00:52.8]} 79... Rxf1# {[%clk 0:00:30.6]} 0-1